fUST/lending_fUST_20250627
["ID","MTS","AMOUNT","RATE_DAILY","PERIOD"]
[367974944,1750980641620,-460.0,0.0002162,2]
[367974946,1750980641630,-460.0,0.0002162,2]
[367974948,1750980641639,-460.0,0.0002162,2]
[367974950,1750980641648,-430.0,0.0002162,2]
[367974952,1750980641658,-460.0,0.0002162,2]
[367974954,1750980641667,-460.0,0.0002162,2]
[367974956,1750980641677,-460.0,0.0002162,2]
[367974958,1750980641686,-460.0,0.0002162,2]
[367974960,1750980641695,-460.0,0.0002162,2]
[367974962,1750980641705,-460.0,0.0002162,2]
[367974964,1750980641714,-460.0,0.0002162,2]
[367974966,1750980641724,-460.0,0.0002162,2]
[367974968,1750980641734,-460.0,0.0002162,2]
[367974970,1750980641743,-460.0,0.0002162,2]
[367974972,1750980641753,-429.95817127,0.0002162,2]
[367974974,1750980641762,-460.0,0.0002162,2]
[367974976,1750980641771,-460.0,0.0002162,2]
[367974978,1750980641780,-460.0,0.0002162,2]
[367974980,1750980641789,-373.87527509,0.0002162,2]
[367974982,1750980641800,-547.96114811,0.0002162,2]
[367974984,1750980641809,-460.0,0.0002162,2]
[367974986,1750980641819,-460.0,0.0002162,2]
[367974988,1750980641828,-460.0,0.0002162,2]
[367974990,1750980641838,-460.0,0.0002162,2]
[367974992,1750980641847,-460.0,0.0002162,2]
[367974994,1750980641857,-632.66,0.0002162,2]
[367974996,1750980641866,-460.0,0.0002162,2]
[367974998,1750980641875,-453.06162331,0.0002162,2]
[367975000,1750980641885,-460.0,0.0002162,2]
[367975002,1750980641894,-460.0,0.0002162,2]
[367975004,1750980641903,-460.0,0.0002162,2]
[367975006,1750980641914,-565.47,0.0002162,2]
[367975008,1750980641924,-320.82673578,0.0002162,2]
[367975010,1750980641934,-460.0,0.0002162,2]
[367975012,1750980641943,-562.68,0.0002162,2]
[367975014,1750980641952,-1185.83,0.0002162,2]
[367975016,1750980641963,-460.0,0.0002162,2]
[367975018,1750980641973,-460.0,0.0002162,2]
[367975019,1750980641983,-500.0,0.0002162,2]
[367975022,1750980641992,-410.0,0.0002162,2]
[367975024,1750980642003,-430.0,0.0002162,2]
[367975026,1750980642014,-480.03,0.0002162,2]
[367975028,1750980642024,-460.0,0.0002162,2]
[367975030,1750980642033,-460.0,0.0002162,2]
[367975032,1750980642043,-535.02,0.0002162,2]
[367975034,1750980642053,-519.92,0.0002162,2]
[367975036,1750980642062,-460.0,0.0002162,2]
[367975038,1750980642072,-460.0,0.0002162,2]
[367975040,1750980642082,-646.48,0.0002162,2]
[367975041,1750980642091,-460.0,0.0002162,2]
[367975043,1750980642100,-460.0,0.0002162,2]
[367975045,1750980642109,-460.0,0.0002162,2]
[367975047,1750980642118,-4941.53,0.0002162,2]
[367975049,1750980642128,-460.0,0.0002162,2]
[367975051,1750980642137,-542.03,0.0002162,2]
[367975053,1750980642146,-460.0,0.0002162,2]
[367975055,1750980642156,-460.0,0.0002162,2]
[367975057,1750980642166,-460.0,0.0002162,2]
[367975059,1750980642175,-1323.9,0.0002162,2]
[367975061,1750980642184,-460.0,0.0002162,2]
[367975063,1750980642193,-463.4434025,0.0002162,2]
[367975065,1750980642203,-460.0,0.0002162,2]
[367975067,1750980642211,-686.78,0.0002162,2]
[367975069,1750980642221,-460.0,0.0002162,2]
[367975071,1750980642230,-460.0,0.0002162,2]
[367975073,1750980642241,-460.0,0.0002162,2]
[367975075,1750980642250,-500.0,0.0002162,2]
[367975077,1750980642259,-1756.95,0.0002162,2]
[367975079,1750980642268,-440.0,0.0002162,2]
[367975081,1750980642278,-1013.24,0.0002162,2]
[367975082,1750980642287,-460.0,0.0002162,2]
[367975084,1750980642297,-460.0,0.0002162,2]
[367975086,1750980642307,-460.0,0.0002162,2]
[367975088,1750980642316,-635.66,0.0002162,2]
[367975090,1750980642325,-964.55,0.0002162,2]
[367975092,1750980642334,-227.63104084,0.0002162,2]
[367975094,1750980642343,-460.0,0.0002162,2]
[367975096,1750980642353,-460.0,0.00021621,2]
[367975098,1750980642362,-638.85,0.00021621,2]
[367975100,1750980642371,-460.0,0.00021621,2]
[367975102,1750980642380,-460.0,0.00021621,2]
[367975104,1750980642389,-460.0,0.00021621,2]
[367975106,1750980642398,-460.0,0.00021621,2]
[367975108,1750980642408,-460.0,0.00021621,2]
[367975110,1750980642417,-151.75220177,0.00021621,2]
[367975112,1750980642426,-460.0,0.00021621,2]
[367975114,1750980642435,-540.65449836,0.00021621,2]
[367975116,1750980642445,-460.0,0.00021621,2]
[367975117,1750980642454,-460.0,0.00021621,2]
[367975119,1750980642464,-460.0,0.00021621,2]
[367975121,1750980642474,-1000.0,0.00021621,2]
[367975123,1750980642491,-1000.0,0.00021621,2]
[367975125,1750980642500,-1000.0,0.00021621,2]
[367975127,1750980642510,-1000.0,0.00021621,2]
[367975129,1750980642519,-1000.0,0.00021621,2]
[367975131,1750980642528,-1000.0,0.00021621,2]
[367975133,1750980642537,-1000.0,0.00021621,2]
[367975135,1750980642547,-1000.0,0.00021621,2]
[367975137,1750980642557,-270.2084879,0.00021621,2]
[367975139,1750980642566,-440.0,0.00021621,2]
[367975141,1750980642576,-460.0,0.00021621,2]
[367975143,1750980642586,-460.0,0.00021621,2]
[367975145,1750980642595,-460.0,0.00021621,2]
[367975147,1750980642604,-460.0,0.00021621,2]
[367975149,1750980642614,-460.0,0.00021621,2]
[367975151,1750980642623,-628.2,0.00021621,2]
[367975153,1750980642632,-460.0,0.00021621,2]
[367975155,1750980642641,-460.0,0.00021621,2]
[367975157,1750980642650,-500.0,0.00021621,2]
[367975159,1750980642660,-888.81,0.00021621,2]
[367975161,1750980642670,-712.07,0.00021621,2]
[367975163,1750980642681,-460.0,0.00021621,2]
[367975165,1750980642690,-460.0,0.00021621,2]
[367975166,1750980642699,-460.0,0.00021621,2]
[367975168,1750980642709,-649.95,0.00021621,2]
[367975170,1750980642718,-460.0,0.00021621,2]
[367975172,1750980642727,-460.0,0.00021621,2]
[367975174,1750980642736,-460.0,0.00021621,2]
[367975177,1750980642746,-460.0,0.00021621,2]
[367975179,1750980642755,-832.45,0.00021621,2]
[367975181,1750980642765,-460.0,0.00021621,2]
[367975183,1750980642773,-460.0,0.00021621,2]
[367975185,1750980642783,-310.0,0.00021621,2]
[367975187,1750980642792,-809.73,0.00021621,2]
[367975189,1750980642801,-460.0,0.00021621,2]
[367975191,1750980642810,-460.0,0.00021621,2]
[367975193,1750980642819,-512.46,0.00021621,2]
[367975195,1750980642828,-460.0,0.00021621,2]
[367975197,1750980642838,-621.8,0.00021621,2]
[367975200,1750980642848,-151.0,0.00021621,2]
[367975202,1750980642857,-460.0,0.00021621,2]
[367975203,1750980642867,-460.0,0.00021621,2]
[367975206,1750980642876,-178.4201111,0.00021621,2]
[367975208,1750980642885,-151.0,0.00021621,2]
[367975209,1750980642895,-151.0,0.00021621,2]
[367975211,1750980642904,-586.63930632,0.00021621,2]
[367975213,1750980642913,-460.0,0.00021621,2]
[367975215,1750980642922,-460.0,0.00021621,2]
[367975217,1750980642932,-151.0,0.00021621,2]
[367975219,1750980642941,-460.0,0.00021621,2]
[367975221,1750980642951,-460.0,0.00021621,2]
[367975223,1750980642961,-1016.19,0.00021621,2]
[367975226,1750980642970,-469.35945,0.00021621,2]
[367975228,1750980642979,-190.669257,0.00021621,2]
[367975230,1750980642989,-469.35945,0.00021621,2]
[367975232,1750980642999,-460.0,0.00021621,2]
[367975234,1750980643008,-460.0,0.00021621,2]
[367975236,1750980643017,-460.0,0.00021621,2]
[367975238,1750980643027,-460.0,0.00021621,2]
[367975240,1750980643036,-460.0,0.00021621,2]
[367975242,1750980643045,-460.0,0.00021621,2]
[367975244,1750980643055,-588.12,0.00021621,2]
[367975246,1750980643064,-460.0,0.00021621,2]
[367975247,1750980643074,-1000.0,0.00021621,2]
[367975249,1750980643083,-1000.0,0.00021621,2]
[367975251,1750980643092,-500.0,0.00021621,2]
[367975253,1750980643102,-462.27859905,0.00021622,2]
[367975255,1750980643111,-460.0,0.00021622,2]
[367975257,1750980643120,-460.0,0.00021622,2]
[367975259,1750980643129,-460.0,0.00021622,2]
[367975261,1750980643139,-460.57201429,0.00021622,2]
[367975263,1750980643148,-460.0,0.00021622,2]
[367975265,1750980643158,-460.0,0.00021622,2]
[367975267,1750980643167,-460.0,0.00021622,2]
[367975269,1750980643176,-460.0,0.00021622,2]
[367975271,1750980643186,-460.0,0.00021622,2]
[367975273,1750980643195,-151.0,0.00021622,2]
[367975275,1750980643204,-151.0,0.00021622,2]
[367975277,1750980643212,-842.54,0.00021622,2]
[367975279,1750980643221,-473.95,0.00021622,2]
[367975281,1750980643230,-1073.81,0.00021622,2]
[367975283,1750980643239,-460.0,0.00021622,2]
[367975285,1750980643248,-460.0,0.00021622,2]
[367975288,1750980643257,-2065.91,0.00021622,2]
[367975291,1750980643266,-665.48,0.00021622,2]
[367975292,1750980643275,-151.361934,0.00021622,2]
[367975294,1750980643285,-469.08,0.00021622,2]
[367975296,1750980643294,-1601.54,0.00021622,2]
[367975298,1750980643304,-460.0,0.00021622,2]
[367975300,1750980643313,-460.0,0.00021622,2]
[367975302,1750980643322,-3475.85,0.00021622,2]
[367975304,1750980643331,-851.93,0.00021622,2]
[367975306,1750980643341,-157.571446,0.00021622,2]
[367975308,1750980643350,-157.571446,0.00021622,2]
[367975310,1750980643359,-460.0,0.00021622,2]
[367975312,1750980643368,-151.0,0.00021622,2]
[367975314,1750980643377,-151.0,0.00021622,2]
[367975316,1750980643386,-551.936838,0.00021622,2]
[367975318,1750980643395,-551.936838,0.00021622,2]
[367975320,1750980643404,-1710.4,0.00021622,2]
[367975322,1750980643414,-1000.0,0.00021622,2]
[367975324,1750980643423,-151.0,0.00021623,2]
[367975326,1750980643433,-151.0,0.00021623,2]
[367975328,1750980643442,-460.0,0.00021623,2]
[367975330,1750980643452,-1000.0,0.00021623,2]
[367975332,1750980643461,-1000.0,0.00021623,2]
[367975334,1750980643470,-195.022756,0.00021624,4]
[367975336,1750980643481,-151.0,0.00021624,2]
[367975339,1750980643492,-151.0,0.00021624,2]
[367975341,1750980643501,-151.0,0.00021624,2]
[367975343,1750980643511,-151.0,0.00021624,2]
[367975345,1750980643520,-159.639645,0.00021624,2]
[367975347,1750980643530,-159.639645,0.00021624,2]
[367975349,1750980643540,-151.0,0.00021624,2]
[367975351,1750980643550,-151.0,0.00021624,2]
[367975353,1750980643560,-151.0,0.00021624,2]
[367975355,1750980643571,-151.0,0.00021624,2]
[367975357,1750980643580,-151.0,0.00021624,2]
[367975359,1750980643589,-151.0,0.00021624,2]
[367975361,1750980643599,-151.0,0.00021624,2]
[367975363,1750980643608,-251.7745,0.00021624,2]
[367975365,1750980643618,-1000.0,0.00021624,2]
[367975367,1750980643627,-1000.0,0.00021624,2]
[367975369,1750980643636,-1000.0,0.00021624,2]
[367975371,1750980643646,-1000.0,0.00021624,2]
[367975373,1750980643655,-460.0,0.00021625,2]
[367975375,1750980643665,-460.0,0.00021625,2]
[367975377,1750980643674,-460.0,0.00021625,2]
[367975379,1750980643683,-460.0,0.00021625,2]
[367975381,1750980643692,-460.0,0.00021625,2]
[367975383,1750980643701,-460.0,0.00021625,2]
[367975384,1750980643711,-460.0,0.00021625,2]
[367975386,1750980643721,-473.21,0.00021625,2]
[367975388,1750980643730,-460.0,0.00021625,2]
[367975390,1750980643740,-440.0,0.00021625,2]
[367975392,1750980643749,-460.0,0.00021625,2]
[367975394,1750980643759,-460.0,0.00021625,2]
[367975410,1750980643903,-460.0,0.00021625,2]
[367975412,1750980643913,-606.17,0.00021625,2]
[367975414,1750980643922,-460.0,0.00021625,2]
[367975416,1750980643931,-460.0,0.00021625,2]
[367975418,1750980643941,-460.0,0.00021625,2]
[367975420,1750980643950,-151.0,0.00021625,2]
[367975422,1750980643959,-431.34771175,0.00021625,2]
[367975424,1750980643968,-460.0,0.00021625,2]
[367975425,1750980643978,-460.0,0.00021625,2]
[367975428,1750980643988,-151.0,0.00021625,2]
[367975430,1750980643998,-151.0,0.00021625,2]
[367975431,1750980644007,-460.0,0.00021625,2]
[367975433,1750980644016,-460.0,0.00021625,2]
[367975435,1750980644026,-460.0,0.00021625,2]
[367975437,1750980644035,-460.0,0.00021625,2]
[367975439,1750980644044,-151.0,0.00021625,2]
[367975441,1750980644054,-386.846006,0.00021625,2]
[367975443,1750980644063,-386.846006,0.00021625,2]
[367975445,1750980644072,-151.0,0.00021625,2]
[367975447,1750980644081,-460.0,0.00021625,2]
[367975449,1750980644091,-460.0,0.00021625,2]
[367975451,1750980644100,-460.0,0.00021625,2]
[367975453,1750980644109,-296.118955,0.00021625,2]
[367975455,1750980644118,-1067.165471,0.00021625,2]
[367975457,1750980644128,-1067.165471,0.00021625,2]
[367975459,1750980644137,-227.152595,0.00021625,2]
[367975461,1750980644146,-227.152595,0.00021625,2]
[367975463,1750980644155,-363.957877,0.00021625,2]
[367975464,1750980644164,-363.957877,0.00021625,2]
[367975466,1750980644174,-500.0,0.00021673,2]
[367975468,1750980644183,-581.33748376,0.00021673,2]
[367975470,1750980644193,-500.0,0.00021673,2]
[367975471,1750980644201,-500.0,0.00021673,2]
[367975472,1750980644210,-285.00690646,0.00021673,2]
[367975473,1750980644399,-214.99309354,0.00021673,2]
[367975474,1750980644408,-500.0,0.00021673,2]
[367975475,1750980644417,-500.0,0.00021673,2]
[367975476,1750980644427,-500.0,0.00021673,2]
[367975477,1750980644436,-500.0,0.00021673,2]
[367975478,1750980644445,-256.20095805,0.00021673,2]
[367975480,1750980644455,-451.60165939,0.00021673,2]
[367975481,1750980644464,-500.0,0.00021673,2]
[367975483,1750980644473,-171.19469755,0.00021673,2]
[367975485,1750980644486,-450.03615033,0.00021673,2]
[367975487,1750980644496,-500.0,0.00021673,2]
[367975489,1750980644505,-500.0,0.00021673,2]
[367975491,1750980644514,-500.0,0.00021673,2]
[367975493,1750980644523,-500.0,0.00021673,2]
[367975495,1750980644532,-500.0,0.00021673,2]
[367975497,1750980644542,-500.0,0.00021673,2]
[367975499,1750980644551,-640.6587808,0.00021673,2]
[367975501,1750980644560,-151.0,0.00021673,2]
[367975503,1750980644569,-151.0,0.00021673,2]
[367975505,1750980644579,-151.0,0.00021673,2]
[367975507,1750980644588,-469.35945,0.00021673,2]
[367975509,1750980644598,-469.35945,0.00021673,2]
[367975511,1750980644607,-213.72380786,0.00021674,2]
[367975513,1750980644616,-160.0,0.00021674,2]
[367975515,1750980644626,-836.92866116,0.00021674,2]
[367975517,1750980644636,-160.0,0.00021674,2]
[367975519,1750980644645,-230.24506774,0.00021674,2]
[367975521,1750980644654,-6528.18277158,0.00021675,2]
[367975523,1750980644666,-2467.27816731,0.00021675,2]
[367975554,1750980644948,-1000.0,0.00021624,2]
[367975556,1750980644958,-1000.0,0.00021624,2]
[367975558,1750980644969,-1000.0,0.00021625,2]
[367975560,1750980644978,-1000.0,0.00021625,2]
[367975562,1750980644988,-1000.0,0.00021626,2]
[367975564,1750980644998,-1000.0,0.00021626,2]
[367975566,1750980645007,-1000.0,0.00021626,2]
[367975568,1750980645017,-1000.0,0.00021627,2]
[367975570,1750980645027,-3564.714139,0.00021675,2]
[367975572,1750980645036,-160.0,0.00021675,2]
[367975574,1750980645046,-151.0,0.00021675,2]
[367975576,1750980645056,-151.0,0.00021675,2]
[367975578,1750980645065,-158.984762,0.000217,2]
[367975580,1750980645075,-576.3988555,0.000217,2]
[367975582,1750980645085,-575.0264769,0.000217,2]
[367975584,1750980645095,-575.0264769,0.000217,2]
[367975586,1750980645104,-151.0,0.000217,2]
[367975588,1750980645114,-500.0,0.000218,2]
[367975590,1750980645124,-168.0,0.00021842,2]
[367975592,1750980645134,-1871.010829,0.0002186,5]
[367975594,1750980645144,-507.29,0.00021872,2]
[367975596,1750980645153,-524.91,0.00021872,2]
[367975598,1750980645163,-460.0,0.00021872,2]
[367975600,1750980645173,-460.0,0.00021879,2]
[367975602,1750980645183,-460.0,0.00021879,2]
[367975603,1750980645194,-460.0,0.00021879,2]
[367975606,1750980645204,-460.0,0.00021879,2]
[367975608,1750980645213,-460.0,0.00021879,2]
[367975610,1750980645223,-460.0,0.00021879,2]
[367975612,1750980645232,-460.0,0.00021879,2]
[367975614,1750980645242,-610.09,0.00021879,2]
[367975616,1750980645251,-578.15,0.00021879,2]
[367975618,1750980645260,-2997.11,0.00021879,2]
[367975620,1750980645271,-764.45,0.00021879,2]
[367975622,1750980645281,-460.0,0.00021879,2]
[367975624,1750980645291,-1000.0,0.0002188,5]
[367975626,1750980645301,-400.0,0.00021881,2]
[367975628,1750980645311,-460.0,0.00021881,2]
[367975630,1750980645324,-460.0,0.00021881,2]
[367975632,1750980645333,-460.0,0.00021881,2]
[367975634,1750980645342,-3481.33,0.00021881,2]
[367975636,1750980645351,-460.0,0.00021881,2]
[367975638,1750980645360,-818.87,0.00021881,2]
[367975640,1750980645370,-460.0,0.00021881,2]
[367975642,1750980645379,-714.16,0.00021881,2]
[367975644,1750980645388,-515.8,0.00021881,2]
[367975646,1750980645398,-460.0,0.00021881,2]
[367975648,1750980645407,-2032.0,0.00021881,2]
[367975650,1750980645416,-830.44253961,0.00021881,2]
[367975653,1750980645432,-892.5796797,0.00021881,2]
[367975655,1750980645448,-771.49778069,0.00021881,2]
[367975657,1750980645459,-297.54115506,0.00021881,2]
[367975686,1750980645736,-191.76926375,0.00021488,2]
[367975689,1750980645746,-1677.88766839,0.00021881,2]
[367975691,1750980645758,-383.73,0.00021881,2]
[367975693,1750980645769,-848.08117655,0.00021881,2]
[367975695,1750980645779,-622.52,0.00021881,2]
[367975697,1750980645789,-390.0,0.00021881,2]
[367975699,1750980645799,-1492.62,0.00021881,2]
[367975701,1750980645808,-460.0,0.00021881,2]
[367975703,1750980645817,-672.78,0.00021881,2]
[367975705,1750980645827,-845.72,0.00021881,2]
[367975707,1750980645836,-157.571446,0.00021881,2]
[367975709,1750980645845,-157.571446,0.00021881,2]
[367975711,1750980645855,-330.8203623,0.00021881,2]
[367975777,1750980646462,-488.65228825,0.00021621,2]
[367975779,1750980646474,-436.2496377,0.00021881,2]
[367975782,1750980646488,-151.0,0.00021881,2]
[367975784,1750980646497,-713.03,0.00021881,2]
[367975786,1750980646507,-2342.37,0.00021881,2]
[367975788,1750980646517,-151.0,0.00021881,2]
[367975790,1750980646526,-460.0,0.00021881,2]
[367975792,1750980646536,-551.936838,0.00021881,2]
[367975794,1750980646546,-551.936838,0.00021881,2]
[367975796,1750980646555,-460.0,0.00021881,2]
[367975798,1750980646565,-460.0,0.00021881,2]
[367975799,1750980646575,-460.0,0.00021892,2]
[367975802,1750980646584,-460.0,0.00021892,2]
[367975804,1750980646594,-460.0,0.00021892,2]
[367975806,1750980646604,-460.0,0.00021892,2]
[367975808,1750980646613,-82.67458189,0.00021892,2]
[367975810,1750980646626,-377.32541811,0.00021892,2]
[367975812,1750980646636,-460.0,0.00021892,2]
[367975814,1750980646645,-460.0,0.00021892,2]
[367975816,1750980646655,-104.42410171,0.00021892,2]
[367975818,1750980646667,-355.57589829,0.00021892,2]
[367975820,1750980646677,-460.0,0.00021892,2]
[367975822,1750980646687,-460.0,0.00021892,2]
[367975824,1750980646697,-619.67,0.00021892,2]
[367975827,1750980646707,-477.99,0.00021892,2]
[367975829,1750980646718,-151.0,0.00021892,2]
[367975831,1750980646727,-460.0,0.00021892,2]
[367975833,1750980646737,-335.21960816,0.00021892,2]
[367975835,1750980646747,-460.0,0.00021892,2]
[367975837,1750980646757,-151.0,0.00021892,2]
[367975839,1750980646767,-460.0,0.00021892,2]
[367975840,1750980646777,-151.0,0.00021892,2]
[367975841,1750980646787,-460.0,0.00021892,2]
[367975842,1750980646796,-161.119433,0.00021892,2]
[367975843,1750980646806,-460.0,0.00021892,2]
[367975844,1750980646815,-151.0,0.00021892,2]
[367975845,1750980646825,-151.0,0.00021892,2]
[367975847,1750980646835,-460.0,0.00021892,2]
[367975849,1750980646845,-460.0,0.00021892,2]
[367975851,1750980646855,-151.0,0.00021892,2]
[367975853,1750980646864,-460.0,0.00021892,2]
[367975855,1750980646874,-151.0,0.00021892,2]
[367975857,1750980646883,-460.0,0.00021892,2]
[367975859,1750980646893,-400.0,0.00021892,2]
[367975861,1750980646903,-460.0,0.00021892,2]
[367975863,1750980646912,-330.0,0.00021892,2]
[367975865,1750980646922,-545.06,0.00021892,2]
[367975867,1750980646931,-460.0,0.00021892,2]
[367975869,1750980646940,-676.88,0.00021892,2]
[367975871,1750980646950,-460.0,0.00021892,2]
[367975873,1750980646959,-460.0,0.00021892,2]
[367975875,1750980646968,-460.0,0.00021892,2]
[367975877,1750980646977,-460.0,0.00021892,2]
[367975879,1750980646987,-460.0,0.00021892,2]
[367975880,1750980646996,-460.0,0.00021892,2]
[367975882,1750980647005,-460.0,0.00021892,2]
[367975884,1750980647016,-389.56432989,0.00021892,2]
[367975886,1750980647025,-460.0,0.00021892,2]
[367975888,1750980647035,-345.26,0.00021892,2]
[367975890,1750980647044,-460.0,0.00021892,2]
[367975892,1750980647054,-460.0,0.00021892,2]
[367975912,1750980647234,-460.0,0.00021892,2]
[367975914,1750980647246,-751.77,0.00021892,2]
[367975917,1750980647255,-460.0,0.00021892,2]
[367975918,1750980647265,-924.57,0.00021892,2]
[367975921,1750980647274,-1102.72,0.00021892,2]
[367975923,1750980647283,-528.95,0.00021892,2]
[367975924,1750980647292,-781.85,0.00021892,2]
[367975927,1750980647302,-460.0,0.00021892,2]
[367975928,1750980647310,-460.0,0.00021892,2]
[367975930,1750980647320,-723.79,0.00021892,2]
[367975932,1750980647329,-460.0,0.00021892,2]
[367975934,1750980647338,-1411.73,0.00021892,2]
[367975936,1750980647347,-485.89,0.00021892,2]
[367975939,1750980647358,-212.92838645,0.00021892,2]
[367975949,1750980647456,-686.87161355,0.00021892,2]
[367975951,1750980647465,-460.0,0.00021892,2]
[367975953,1750980647475,-736.39,0.00021892,2]
[367975955,1750980647487,-868.14,0.00021892,2]
[367975957,1750980647497,-460.0,0.00021892,2]
[367975959,1750980647506,-821.58,0.00021892,2]
[367975961,1750980647516,-460.0,0.00021892,2]
[367975963,1750980647525,-631.56,0.00021892,2]
[367975965,1750980647535,-460.0,0.00021892,2]
[367975967,1750980647545,-745.53,0.00021892,2]
[367975969,1750980647555,-460.0,0.00021892,2]
[367975971,1750980647564,-460.0,0.00021893,2]
[367975973,1750980647574,-460.0,0.00021893,2]
[367975975,1750980647584,-460.0,0.00021893,2]
[367975977,1750980647593,-460.0,0.00021893,2]
[367975979,1750980647603,-756.78,0.00021893,2]
[367975981,1750980647612,-460.0,0.00021893,2]
[367975983,1750980647621,-400.0,0.00021893,2]
[367975985,1750980647631,-460.0,0.00021893,2]
[367975987,1750980647640,-460.0,0.00021893,2]
[367975989,1750980647649,-460.0,0.00021894,2]
[367975991,1750980647658,-487.48,0.00021894,2]
[367975993,1750980647667,-460.0,0.00021894,2]
[367975995,1750980647677,-420.0,0.00021894,2]
[367975997,1750980647686,-460.0,0.00021894,2]
[367975999,1750980647695,-520.00870561,0.00021894,2]
[367976001,1750980647704,-460.0,0.00021894,2]
[367976003,1750980647714,-460.0,0.00021894,2]
[367976005,1750980647723,-460.0,0.00021894,2]
[367976007,1750980647733,-460.0,0.00021894,2]
[367976009,1750980647742,-242.56224434,0.00021894,2]
[367976011,1750980647752,-370.0,0.00021894,2]
[367976013,1750980647761,-460.0,0.00021894,2]
[367976015,1750980647770,-371.52918945,0.00021894,2]
[367976017,1750980647779,-460.0,0.00021894,2]
[367976019,1750980647789,-474.69207101,0.00021894,2]
[367976021,1750980647799,-460.0,0.00021894,2]
[367976023,1750980647809,-460.0,0.00021894,2]
[367976025,1750980647818,-499.19612893,0.00021894,2]
[367976026,1750980647828,-460.0,0.00021894,2]
[367976028,1750980647837,-460.0,0.00021894,2]
[367976030,1750980647846,-279.88069824,0.00021894,2]
[367976032,1750980647855,-38.20545308,0.00021894,2]
[367976035,1750980647867,-421.79454692,0.00021894,2]
[367976037,1750980647876,-460.0,0.00021894,2]
[367976038,1750980647887,-460.0,0.00021894,2]
[367976040,1750980647896,-151.0,0.00021894,2]
[367976042,1750980647906,-460.0,0.00021894,2]
[367976044,1750980647915,-151.0,0.00021894,2]
[367976046,1750980647924,-151.0,0.00021894,2]
[367976048,1750980647934,-385.30796892,0.00021894,2]
[367977650,1750981315522,165.508446,0.00013699,2]
[367977674,1750981832654,-1200.0,0.00020983,2]
[367977676,1750981832664,-460.0,0.00020984,2]
[367977678,1750981832674,-33747.18843134,0.00020984,2]
[367977680,1750981832695,-466.86868585,0.00020984,2]
[367977684,1750981832768,-1390.20203644,0.00020984,2]
[367977685,1750981833390,-22154.51469398,0.00020984,2]
[367977686,1750981833403,-5481.45812239,0.00020984,2]
[367977687,1750981833412,-288.40169138,0.00020986,2]
[367977688,1750981833423,-151.0,0.00021201,4]
[367977689,1750981833432,-460.0,0.00021258,2]
[367977690,1750981833441,-255.0,0.0002131,2]
[367977691,1750981833451,-255.0,0.00021315,2]
[367977692,1750981833461,-162.93727988,0.0002132,2]
[367977693,1750981833471,-151.0,0.00021361,4]
[367977694,1750981833480,-232.65351812,0.00021388,2]
[367977695,1750981833490,-160.0,0.00021424,2]
[367977696,1750981833504,-1331.93647833,0.00021429,2]
[367977697,1750981833514,-267.67,0.00021468,10]